bitfinex/quotes_SOLUSD_20250118
["timestamp","ask_amount","ask_price","bid_price","bid_amount"]
[1737198300541,31.97858605,243.54,243.52,0.063]
[1737198300929,23.776884,243.53,243.52,0.063]
[1737198301127,55.75547005,243.53,243.34,31.97858605]
[1737198301332,31.97858605,243.44,243.32,31.97858605]
[1737198301639,55.75547005,243.44,243.32,31.97858605]
[1737198301847,55.75547005,243.44,243.19,0.61622168]
[1737198301848,23.776884,243.43,243.21,1.553]
[1737198302042,44.36858605,243.48,243.21,1.553]
[1737198302043,55.75547005,243.34,243.21,1.553]
[1737198302229,55.75547005,243.34,243.11,1.553]
[1737198302549,59.86487005,243.34,243.14,31.97858605]
[1737198302734,23.776884,243.3,243.1,31.97858605]
[1737198302935,107.7340561,243.28,243.08,0.063]
[1737198303131,31.97858605,243.09,243.08,30.063]
[1737198303338,31.97858605,243.09,243.08,0.063]
[1737198303542,55.75547005,243.09,243.08,0.063]
[1737198303925,55.75547005,243.09,242.92,0.03]
[1737198303926,20.0,243.05,242.92,0.03]
[1737198304126,55.75547005,242.94,242.86,0.063]
[1737198304328,20.0,242.83,242.76,0.03]
[1737198304535,23.776884,242.86,242.76,0.03]
[1737198304536,4.1175,242.86,242.76,0.03]
[1737198304748,14.4114,242.86,242.76,0.03]
[1737198304928,31.97858605,242.77,242.71,0.03]
[1737198305128,31.97858605,242.74,242.71,0.03]
[1737198305342,31.97858605,242.72,242.71,0.03]
[1737198305553,23.776884,242.71,242.67,0.03]
[1737198305839,31.97858605,242.68,242.58,0.03]
[1737198306046,31.97858605,242.6,242.58,0.03]
[1737198306433,31.97858605,242.6,242.33,0.03]
[1737198306633,5.36,242.7,242.33,0.03]
[1737198306949,20.0,242.67,242.33,0.64870747]
[1737198307149,10.2995,242.74,242.33,0.64870747]
[1737198307451,31.97858605,242.58,242.49,31.97858605]
[1737198307749,31.97858605,242.64,242.55,31.97858605]
[1737198308046,31.97858605,242.7,242.62,31.97858605]
[1737198308250,31.97858605,242.88,242.53,31.97858605]
[1737198308251,31.97858605,242.63,242.53,31.97858605]
[1737198308449,31.97858605,242.6,242.46,0.03]
[1737198308646,36.09788605,242.76,242.46,0.03]
[1737198308849,36.09778605,242.76,242.46,0.03]
[1737198309230,20.0,242.72,242.46,0.03]
[1737198309431,31.97858605,242.63,242.53,31.97858605]
[1737198309646,31.97858605,242.65,242.55,31.97858605]
[1737198309860,6.2392,242.91,242.63,31.97858605]
[1737198310034,4.1176,242.86,242.68,20.0]
[1737198310236,31.97858605,242.72,242.63,31.97858605]
[1737198310451,31.97858605,242.74,242.53,2.12428401]
[1737198310740,31.97858605,242.74,242.65,31.97858605]
[1737198311061,31.97858605,242.74,242.55,0.61810415]
[1737198311360,31.97858605,242.74,242.64,31.97858605]
[1737198311568,31.97858605,242.72,242.62,31.97858605]
[1737198312840,31.97858605,242.72,242.65,0.03]
[1737198313335,31.97858605,242.74,242.65,0.03]
[1737198313539,31.97858605,242.76,242.67,31.97858605]
[1737198313741,4.1174,242.87,242.65,32.00858605]
[1737198313742,31.97858605,242.74,242.65,32.00858605]
[1737198313952,31.97858605,242.72,242.65,0.03]
[1737198314276,31.97858605,242.7,242.65,0.03]
[1737198314653,16.476633,242.76,242.65,0.03]
[1737198314654,55.75547005,242.66,242.65,0.03]
[1737198314848,91.8549561,242.66,242.65,0.03]
[1737198315170,55.75547005,242.66,242.65,0.03]
[1737198315351,87.7340561,242.66,242.65,0.03]
[1737198315772,55.75547005,242.66,242.65,0.03]
[1737198316380,23.776884,242.65,242.54,31.97858605]
[1737198316543,31.97858605,242.58,242.49,31.97858605]
[1737198316869,31.97858605,242.62,242.51,31.97858605]
[1737198317352,31.97858605,242.62,242.53,31.97858605]
[1737198317862,31.97858605,242.62,242.51,31.97858605]
[1737198318280,23.776884,242.61,242.51,31.97858605]
[1737198318452,31.97858605,242.54,242.46,0.03]
[1737198318944,31.97858605,242.52,242.42,29.10274787]
[1737198319545,23.776884,242.51,242.42,29.10274787]
[1737198319742,31.97858605,242.52,242.42,29.10274787]
[1737198319953,31.97858605,242.64,242.39,1.5347]
[1737198319954,31.97858605,242.54,242.44,31.97858605]
[1737198320255,31.97858605,242.5,242.4,31.97858605]
[1737198320482,31.97858605,242.48,242.38,31.97858605]
[1737198320778,23.776884,242.43,242.36,31.97858605]
[1737198321076,31.97858605,242.44,242.34,31.97858605]
[1737198321077,23.776884,242.41,242.34,31.97858605]
[1737198321377,23.776884,242.38,242.29,31.97858605]
[1737198321557,23.776884,242.36,242.29,31.97858605]
[1737198321760,31.97858605,242.35,242.25,31.97858605]
[1737198322147,23.776884,242.34,242.21,31.97858605]
[1737198322375,23.776884,242.34,242.2,0.03]
[1737198323077,43.776884,242.3,242.2,0.03]
[1737198323260,31.97858605,242.24,242.2,0.03]
[1737198323448,31.97858605,242.22,242.2,0.03]
[1737198323647,23.776884,242.21,242.2,0.03]
[1737198325075,31.97858605,242.22,242.2,0.03]
[1737198326571,31.97858605,242.21,242.2,0.03]
[1737198326774,31.97858605,242.23,242.2,0.03]
[1737198327146,23.776884,242.22,242.2,0.03]
[1737198328253,23.776884,242.24,242.2,0.03]
[1737198328679,23.776884,242.25,242.2,0.03]
[1737198329061,4.1252,242.41,242.24,31.97858605]
[1737198329267,31.97858605,242.26,242.2,0.03]
[1737198329578,23.776884,242.21,242.2,0.03]
[1737198330371,23.776884,242.17,242.13,0.03]
[1737198330578,6.0936,242.4,242.13,0.03]
[1737198330781,31.97858605,242.27,242.18,31.97858605]
[1737198331268,31.97858605,242.29,242.2,31.97858605]
[1737198331485,31.97858605,242.29,242.13,0.03]
[1737198331486,31.97858605,242.3,242.13,0.03]
[1737198331673,31.97858605,242.32,242.23,31.97858605]
[1737198331977,31.97858605,242.36,242.27,31.97858605]
[1737198332780,31.97858605,242.32,242.22,31.97858605]
[1737198332966,23.776884,242.31,242.22,31.97858605]
[1737198333169,23.776884,242.29,242.22,31.97858605]
[1737198333475,23.776884,242.29,242.2,31.97858605]
[1737198333679,23.776884,242.27,242.2,31.97858605]
[1737198333874,23.776884,242.27,242.18,31.97858605]
[1737198334271,23.776884,242.25,242.16,31.97858605]
[1737198334581,16.5171,242.3,242.13,0.03]
[1737198334582,23.776884,242.19,242.13,0.03]
[1737198335082,23.776884,242.17,242.13,0.03]
[1737198335275,23.776884,242.15,242.13,0.03]
[1737198336378,59.88527005,242.14,242.13,0.03]
[1737198336577,43.776884,242.1,241.97,0.03]
[1737198336778,31.97858605,242.07,241.98,31.97858605]
[1737198336964,23.776884,242.06,241.97,0.03]
[1737198337477,23.776884,242.04,241.97,0.03]
[1737198337683,23.776884,242.02,241.97,0.03]
[1737198337880,31.97858605,241.99,241.97,0.03]
[1737198338079,23.776884,241.98,241.97,0.03]
[1737198338281,23.776884,241.9,241.89,0.0001]
[1737198338468,55.75547005,241.9,241.89,0.0001]
[1737198338789,55.75547005,241.9,241.76,0.03]
[1737198339089,31.97858605,241.91,241.8,31.97858605]
[1737198339392,23.776884,241.9,241.82,31.97858605]
[1737198339570,23.776884,241.86,241.76,0.03]
[1737198339886,31.97858605,241.85,241.76,0.03]
[1737198340108,44.36858605,241.92,241.76,0.03]
[1737198340109,31.97858605,241.83,241.76,0.03]
[1737198340263,6.169,242.05,241.81,31.97858605]
[1737198340471,31.97858605,241.93,241.83,31.97858605]
[1737198340711,23.776884,241.92,241.83,31.97858605]
[1737198341087,31.97858605,241.97,241.87,31.97858605]
[1737198341390,23.776884,241.93,241.84,31.97858605]
[1737198341761,31.97858605,241.96,241.86,31.97858605]
[1737198342195,31.97858605,242.0,241.88,31.97858605]
[1737198342363,31.97858605,241.94,241.84,31.97858605]
[1737198342696,23.776884,241.93,241.84,31.97858605]
[1737198343194,31.97858605,241.94,241.84,31.97858605]
[1737198343496,31.97858605,241.96,241.86,31.97858605]
[1737198343698,23.776884,241.95,241.86,31.97858605]
[1737198343996,31.97858605,241.98,241.88,31.97858605]
[1737198344162,31.97858605,242.16,241.97,31.97858605]
[1737198344372,31.97858605,242.16,241.92,31.97858605]
[1737198344373,31.97858605,242.22,242.11,31.97858605]
[1737198344575,31.97858605,242.27,242.18,31.97858605]
[1737198344881,0.063,242.29,242.12,23.776884]
[1737198345087,0.063,242.29,242.11,20.0]
[1737198345393,0.063,242.29,242.19,20.0]
[1737198345590,0.063,242.29,242.23,20.0]
[1737198345983,0.063,242.29,242.28,31.97858605]
[1737198346194,0.063,242.29,242.28,63.9571721]
[1737198346379,0.063,242.29,242.28,31.97858605]
[1737198346581,4.1216,242.62,242.29,23.776884]
[1737198346794,31.97858605,242.68,242.57,31.97858605]
[1737198347105,6.2779,242.72,242.59,31.97858605]
[1737198347396,31.97858605,242.74,242.63,31.97858605]
[1737198347576,4.1843,242.65,242.37,6.1016]
[1737198347774,31.97858605,242.61,242.5,31.97858605]
[1737198347974,31.97858605,242.63,242.52,31.97858605]
[1737198348177,16.489572,242.64,242.54,31.97858605]
[1737198348379,16.489572,242.64,242.4,31.97858605]
[1737198348380,16.489572,242.64,242.56,31.97858605]
[1737198348700,16.489572,242.64,242.61,31.97858605]
[1737198348901,5.52,242.88,242.41,0.61843287]
[1737198348902,31.97858605,242.85,242.63,31.97858605]
[1737198349091,4.1172,242.88,242.6,1.6252]
[1737198349277,16.478105,242.84,242.62,9.71]
[1737198349603,31.97858605,242.71,242.61,31.97858605]
[1737198349791,20.0,242.67,242.61,31.97858605]
[1737198350100,31.97858605,242.72,242.61,31.97858605]
[1737198350272,31.97858605,242.72,242.63,31.97858605]
[1737198350482,20.0,242.65,242.55,31.97858605]
[1737198350669,31.97858605,242.76,242.42,1.6252]
[1737198350670,31.97858605,242.62,242.53,31.97858605]
[1737198350966,23.776884,242.56,242.49,31.97858605]
[1737198351199,23.776884,242.54,242.42,1.6252]
[1737198351498,23.776884,242.5,242.44,31.97858605]
[1737198351694,4.1843,242.64,242.49,31.97858605]
[1737198351901,0.063,242.64,242.59,31.97858605]
[1737198352592,36.16298605,242.64,242.55,31.97858605]
[1737198352898,4.1215,242.63,242.54,31.97858605]
[1737198353072,0.063,242.64,242.56,31.97858605]
[1737198353271,0.063,242.64,242.61,31.97858605]
[1737198353472,4.1844,242.64,242.4,31.97858605]
[1737198353670,23.776884,242.63,242.4,31.97858605]
[1737198353893,4.1844,242.64,242.4,31.97858605]
[1737198354500,23.776884,242.54,242.45,31.97858605]
[1737198354681,36.10048605,242.61,242.51,31.97858605]
[1737198355001,31.97858605,242.55,242.47,31.97858605]
[1737198355188,23.776884,242.56,242.47,31.97858605]
[1737198355489,0.063,242.64,242.55,31.97858605]
[1737198355715,0.063,242.64,242.63,31.97858605]
[1737198355888,31.97858605,242.88,242.63,31.97858605]
[1737198355889,16.478105,242.84,242.66,20.0]
[1737198356197,31.97858605,242.94,242.82,31.97858605]
[1737198356495,31.97858605,242.92,242.81,31.97858605]
[1737198356791,31.97858605,242.92,242.67,0.61789695]
[1737198356995,16.529844,242.9,242.84,31.97858605]
[1737198357595,0.063,242.9,242.84,31.97858605]
[1737198357791,0.063,242.9,242.86,31.97858605]
[1737198357973,0.063,242.9,242.89,20.0]
[1737198358179,31.97858605,243.09,242.89,75.75547005]
[1737198358397,31.97858605,243.16,243.07,31.97858605]
[1737198358628,31.97858605,243.1,243.01,31.97858605]
[1737198358895,31.97858605,243.1,242.89,0.61714408]
[1737198358896,31.97858605,243.05,242.87,1.6252]
[1737198359105,31.97858605,243.05,242.94,31.97858605]
[1737198359304,26.7796,243.23,242.92,31.97858605]
[1737198359305,31.97858605,243.03,242.92,31.97858605]
[1737198359599,31.97858605,242.99,242.87,1.6252]
[1737198359801,31.97858605,242.94,242.84,31.97858605]
[1737198359973,31.97858605,242.96,242.86,31.97858605]
[1737198360497,23.776884,242.93,242.84,31.97858605]
[1737198360708,41.1132,243.23,242.86,31.97858605]
[1737198360995,31.97858605,243.16,243.06,31.97858605]
[1737198361171,31.97858605,243.12,243.02,31.97858605]
[1737198361372,31.97858605,243.24,243.06,31.97858605]
[1737198361373,31.97858605,243.17,243.06,31.97858605]
[1737198361578,14.3878,243.26,243.09,31.97858605]
[1737198361879,31.97858605,243.13,243.03,31.97858605]
[1737198362090,31.97858605,243.13,242.89,0.61715459]
[1737198362091,31.97858605,243.15,243.05,31.97858605]
[1737198362295,31.97858605,243.11,243.0,31.97858605]
[1737198362486,23.776884,243.07,242.98,31.97858605]
[1737198362999,0.063,243.01,242.98,31.97858605]
[1737198363174,0.063,243.01,242.94,31.97858605]
[1737198363994,0.063,243.01,242.96,31.97858605]
[1737198364371,0.063,243.01,243.0,31.97858605]
[1737198364577,16.452468,243.23,243.03,20.0]
[1737198364906,31.97858605,243.33,243.22,31.97858605]
[1737198365206,23.776884,243.24,243.01,1.6252]
[1737198365372,31.97858605,243.2,243.01,1.6252]
[1737198365571,31.97858605,243.22,243.1,31.97858605]
[1737198365776,31.97858605,243.24,243.12,31.97858605]
[1737198366008,55.75547005,243.2,243.1,31.97858605]
[1737198366304,23.776884,243.15,243.06,31.97858605]
[1737198366479,31.97858605,243.16,243.06,31.97858605]
[1737198366681,31.97858605,243.21,243.1,31.97858605]
[1737198366995,31.97858605,243.19,243.08,31.97858605]
[1737198367199,31.97858605,243.19,243.1,31.97858605]
[1737198367496,31.97858605,243.17,243.06,31.97858605]
[1737198367696,1.88002109,243.46,243.16,31.97858605]
[1737198367995,31.97858605,243.32,243.21,31.97858605]
[1737198368197,31.97858605,243.28,243.17,31.97858605]
[1737198369182,31.97858605,243.24,243.15,31.97858605]
[1737198369389,31.97858605,243.22,243.1,31.97858605]
[1737198369693,31.97858605,243.26,243.16,31.97858605]
[1737198370205,0.063,243.27,243.22,31.97858605]
[1737198370375,0.063,243.27,243.26,31.97858605]
[1737198370579,0.063,243.27,243.12,31.97858605]
[1737198370580,0.063,243.27,243.2,31.97858605]
[1737198370876,4.1108,243.26,243.01,2.24186522]
[1737198371199,31.97858605,243.26,243.17,31.97858605]
[1737198371590,31.97858605,243.22,243.13,31.97858605]
[1737198371792,31.97858605,243.22,243.1,31.97858605]
[1737198372095,31.97858605,243.24,243.14,31.97858605]
[1737198372589,31.97858605,243.16,243.06,31.97858605]
[1737198372788,31.97858605,243.09,242.99,31.97858605]
[1737198373096,31.97858605,243.12,243.01,31.97858605]
[1737198373297,31.97858605,243.14,243.04,31.97858605]
[1737198373599,31.97858605,243.11,243.01,31.97858605]
[1737198373792,31.97858605,243.05,242.95,31.97858605]
[1737198373980,31.97858605,243.03,242.93,31.97858605]
[1737198374177,31.97858605,243.12,242.89,33.59958605]
[1737198374178,23.776884,242.98,242.89,33.59958605]
[1737198374489,31.97858605,242.93,242.83,31.97858605]
[1737198374691,31.97858605,242.85,242.77,1.621]
[1737198374902,31.97858605,242.85,242.75,31.97858605]
[1737198375076,31.97858605,242.83,242.73,31.97858605]
[1737198375405,10.2864,243.04,242.8,31.97858605]
[1737198375590,31.97858605,243.05,242.95,31.97858605]
[1737198375780,10.2794,243.21,242.82,8.0635]
[1737198375980,6.4385,243.22,243.03,31.97858605]
[1737198375981,4.1118,243.2,243.03,31.97858605]
[1737198376199,4.1118,243.2,242.86,23.776884]
[1737198376200,31.97858605,243.09,242.98,31.97858605]
[1737198376394,31.97858605,243.07,242.98,31.97858605]
[1737198376704,31.97858605,243.07,242.96,31.97858605]
[1737198376891,31.97858605,243.07,242.94,31.97858605]
[1737198376892,31.97858605,243.03,242.94,31.97858605]
[1737198377087,23.776884,243.02,242.94,31.97858605]
[1737198377398,31.97858605,243.03,242.92,31.97858605]
[1737198377792,23.776884,243.02,242.92,31.97858605]
[1737198377992,23.776884,243.02,242.88,31.97858605]
[1737198377993,31.97858605,242.99,242.88,31.97858605]
[1737198378578,31.97858605,242.99,242.9,31.97858605]
[1737198378889,31.97858605,242.93,242.83,31.97858605]
[1737198379088,23.776884,242.88,242.79,31.97858605]
[1737198379299,23.776884,242.75,242.52,0.61777043]
[1737198379496,14.4027,243.01,242.5,0.61820331]
[1737198379703,14.4027,243.01,242.54,149.69]
[1737198379997,20.0,242.95,242.58,12.39]
[1737198380185,23.776884,242.9,242.6,23.776884]
[1737198380385,23.776884,242.9,242.59,0.61777602]
[1737198380386,31.97858605,242.83,242.72,31.97858605]
[1737198380724,31.97858605,242.89,242.78,31.97858605]
[1737198381403,31.97858605,242.92,242.8,31.97858605]
[1737198381588,31.97858605,242.9,242.78,31.97858605]
[1737198381787,31.97858605,242.92,242.82,31.97858605]
[1737198382004,31.97858605,242.93,242.82,31.97858605]
[1737198382203,31.97858605,242.91,242.8,31.97858605]
[1737198382595,4.1156,242.98,242.82,31.97858605]
[1737198382596,31.97858605,242.93,242.82,31.97858605]
[1737198382900,23.776884,242.92,242.82,31.97858605]
[1737198383102,31.97858605,242.95,242.84,31.97858605]
[1737198383310,4.1154,242.99,242.65,0.617962]
[1737198383311,31.97858605,242.85,242.65,0.617962]
[1737198383503,31.97858605,242.8,242.7,31.97858605]
[1737198383699,31.97858605,242.78,242.68,31.97858605]
[1737198383891,1.647727,242.84,242.69,0.61811246]
[1737198384097,1.647727,242.84,242.58,13.0078151]
[1737198384700,1.647727,242.84,242.59,23.776884]
[1737198384905,31.97858605,242.9,242.79,31.97858605]
[1737198385208,23.776884,242.89,242.79,31.97858605]
[1737198385391,31.97858605,242.9,242.79,31.97858605]
[1737198385914,31.97858605,242.88,242.77,31.97858605]
[1737198386092,31.97858605,242.88,242.79,31.97858605]
[1737198386414,31.97858605,242.83,242.59,0.61778814]
[1737198386594,31.97858605,242.83,242.73,31.97858605]
[1737198386793,31.97858605,242.85,242.73,31.97858605]
[1737198386988,23.776884,242.74,242.57,1.621]
[1737198387310,23.776884,242.74,242.42,138.947727]
[1737198387311,31.97858605,242.65,242.44,2.18625088]
[1737198387611,31.97858605,242.76,242.58,31.97858605]
[1737198387612,31.97858605,242.69,242.58,31.97858605]
[1737198387916,4.1165,242.92,242.68,31.97858605]
[1737198388091,4.1165,242.92,242.59,0.61831451]
[1737198388290,14.4079,242.92,242.59,0.61831451]
[1737198388614,14.4079,242.92,242.75,0.03]
[1737198388823,7.78585702,242.91,242.75,0.03]
[1737198389003,31.97858605,242.78,242.75,0.03]
[1737198389192,12.39,242.75,242.37,4.1259]
[1737198389491,31.97858605,242.6,242.48,31.97858605]
[1737198389692,31.97858605,242.76,242.41,0.61846783]
[1737198390018,8.2452,242.88,242.44,6.5001]
[1737198390317,6.623,242.81,242.37,4.1259]
[1737198390615,12.39,242.7,242.3,4.1271]
[1737198390813,31.97858605,242.4,242.3,4.1271]
[1737198390996,31.97858605,242.34,242.29,0.03]
[1737198391196,31.97858605,242.38,242.29,0.03]
[1737198391404,12.39,242.78,242.29,0.64893215]
[1737198391600,31.97858605,242.54,242.29,0.64893215]
[1737198391796,31.97858605,242.53,242.41,31.97858605]
[1737198392090,31.97858605,242.55,242.43,31.97858605]
[1737198392505,31.97858605,242.55,242.44,4.1247]
[1737198392702,31.97858605,242.57,242.45,31.97858605]
[1737198392904,31.97858605,242.57,242.47,51.97858605]
[1737198393103,31.97858605,242.65,242.53,31.97858605]
[1737198393303,31.97858605,242.65,242.48,23.776884]
[1737198393304,31.97858605,242.67,242.57,31.97858605]
[1737198393505,31.97858605,242.67,242.44,14.4365]
[1737198393506,31.97858605,242.63,242.44,14.4365]
[1737198393821,4.1194,242.75,242.42,4.125]
[1737198393822,20.0,242.55,242.42,4.125]
[1737198393997,31.97858605,242.52,242.42,4.125]
[1737198394206,31.97858605,242.5,242.41,1.5681]
[1737198394523,31.97858605,242.5,242.36,36.10448605]
[1737198394524,31.97858605,242.46,242.36,36.10448605]
[1737198394822,3.01412129,242.62,242.36,31.97858605]
[1737198395006,31.97858605,242.52,242.43,31.97858605]
[1737198395210,31.97858605,242.52,242.4,31.97858605]
[1737198395408,7.13592129,242.62,242.36,31.97858605]
[1737198395409,31.97858605,242.47,242.36,31.97858605]
[1737198395623,31.97858605,242.49,242.4,31.97858605]
[1737198395930,31.97858605,242.51,242.4,31.97858605]
[1737198396104,31.97858605,242.57,242.45,31.97858605]
[1737198396309,31.97858605,242.53,242.41,31.97858605]
[1737198396706,31.97858605,242.51,242.42,4.125]
[1737198396911,31.97858605,242.55,242.45,51.97858605]
[1737198397220,31.97858605,242.53,242.42,4.125]
[1737198397409,31.97858605,242.53,242.31,0.61882782]
[1737198397410,31.97858605,242.49,242.39,31.97858605]
[1737198397812,31.97858605,242.47,242.37,31.97858605]
[1737198398013,31.97858605,242.41,242.31,31.97858605]
[1737198398210,31.97858605,242.36,242.29,0.03]
[1737198398521,31.97858605,242.32,242.29,0.03]
[1737198398721,31.97858605,242.3,242.29,0.03]
[1737198399220,55.75547005,242.3,242.29,0.03]
[1737198399415,20.0,242.26,242.21,0.03]
[1737198399616,20.0,242.18,242.04,0.03]
[1737198399816,31.97858605,242.1,242.04,0.03]
[1737198400005,31.97858605,242.12,242.04,0.03]
[1737198400201,20.0,242.08,242.04,0.03]
[1737198400402,31.97858605,242.05,242.04,0.03]
[1737198400831,55.75547005,242.05,242.04,0.03]
[1737198401002,31.97858605,242.05,242.04,0.03]
[1737198401722,91.8653561,242.05,242.04,0.03]
[1737198402321,91.8653561,242.05,241.88,31.97858605]
[1737198402322,91.8653561,242.05,241.84,36.11348605]
[1737198402538,31.97858605,241.94,241.84,36.11348605]
[1737198402713,31.97858605,241.96,241.86,31.97858605]
[1737198402910,31.97858605,241.94,241.84,31.97858605]
[1737198403124,31.97858605,241.92,241.82,31.97858605]
[1737198403448,31.97858605,241.85,241.76,32.00858605]
[1737198403615,31.97858605,241.87,241.78,31.97858605]
[1737198404115,31.97858605,241.83,241.76,0.03]
[1737198404306,31.97858605,241.81,241.76,0.03]
[1737198405031,31.97858605,241.85,241.76,0.03]
[1737198405231,31.97858605,241.83,241.76,0.03]
[1737198405535,31.97858605,241.81,241.76,0.03]
[1737198405729,23.776884,241.84,241.79,0.03]
[1737198405919,20.0,241.81,241.79,0.03]
[1737198406631,14.4694,241.89,241.79,0.03]
[1737198406934,31.97858605,241.92,241.79,0.03]
[1737198406935,63.9571721,241.8,241.79,0.03]
[1737198407242,31.97858605,241.8,241.79,0.03]
[1737198408272,63.9571721,241.8,241.79,0.03]
[1737198408417,51.97858605,241.77,241.76,0.03]
[1737198409046,56.11468605,241.77,241.54,31.97858605]
[1737198409246,31.97858605,241.57,241.51,0.03]
[1737198409835,35.1573,241.77,241.54,31.97858605]
[1737198410126,14.4765,241.77,241.51,14.5219]
[1737198410329,31.97858605,241.62,241.52,31.97858605]
[1737198410540,31.97858605,241.58,241.51,4.1704]
[1737198410847,31.97858605,241.62,241.54,20.0]
[1737198411013,31.97858605,241.64,241.57,20.0]
[1737198411336,31.97858605,241.62,241.54,4.1399]
[1737198411630,31.97858605,241.64,241.57,20.0]
[1737198411834,16.544709,241.8,241.66,20.0]
[1737198412036,16.544709,241.8,241.74,31.97858605]
[1737198412254,31.97858605,241.85,241.77,23.776884]
[1737198412452,31.97858605,241.87,241.77,23.776884]
[1737198412621,31.97858605,241.87,241.77,51.97858605]
[1737198412822,4.1317,242.03,241.79,23.776884]
[1737198413137,4.1317,242.03,241.88,20.0]
[1737198413341,31.97858605,241.97,241.89,23.776884]
[1737198413519,4.13,242.13,241.92,20.0]
[1737198414337,4.13,242.13,241.92,0.61976396]
[1737198414560,4.1296,242.16,241.98,31.97858605]
[1737198414725,31.97858605,242.08,241.99,23.776884]
[1737198415242,31.97858605,242.1,242.01,23.276884]
[1737198415439,31.97858605,242.08,242.01,23.276884]
[1737198415650,31.97858605,242.03,241.94,4.1332]
[1737198415946,4.1296,242.15,241.92,31.97858605]
[1737198415947,31.97858605,242.01,241.93,4.1334]
[1737198416128,31.97858605,242.01,241.91,4.1337]
[1737198416326,31.97858605,242.03,241.94,31.97858605]
[1737198416549,31.97858605,242.03,241.92,31.97858605]
[1737198416742,31.97858605,242.01,241.92,31.97858605]
[1737198417255,31.97858605,242.01,241.9,31.97858605]
[1737198417429,31.97858605,241.91,241.82,31.97858605]
[1737198417748,31.97858605,241.91,241.79,4.1357]
[1737198417749,31.97858605,241.91,241.8,31.97858605]
[1737198417923,31.97858605,241.89,241.78,31.97858605]
[1737198418120,31.97858605,241.87,241.79,23.776884]
[1737198418343,31.97858605,241.87,241.78,31.97858605]
[1737198419060,31.97858605,241.87,241.79,4.1358]
[1737198419353,31.97858605,241.87,241.78,31.97858605]
[1737198419645,31.97858605,241.87,241.76,1.689]
[1737198419646,20.6483,242.15,241.85,31.97858605]
[1737198419848,31.97858605,241.99,241.89,31.97858605]
[1737198420030,31.97858605,241.97,241.87,31.97858605]
[1737198420231,31.97858605,241.97,241.88,20.0]
[1737198420432,31.97858605,241.99,241.89,23.776884]
[1737198420631,31.97858605,241.99,241.89,31.97858605]
[1737198420832,31.97858605,241.99,241.81,10.95832286]
[1737198420833,31.97858605,241.95,241.85,31.97858605]
[1737198421028,4.1317,242.03,241.85,31.97858605]
[1737198421029,31.97858605,241.97,241.85,31.97858605]
[1737198421327,31.97858605,241.94,241.82,4.1353]
[1737198421532,31.97858605,241.98,241.88,31.97858605]
[1737198421727,4.1314,242.05,241.91,23.776884]
[1737198422037,31.97858605,241.95,241.84,31.97858605]
[1737198422236,31.97858605,241.95,241.86,31.97858605]
[1737198422546,23.776884,242.04,241.87,23.776884]
[1737198422547,31.97858605,241.97,241.87,23.776884]
[1737198422748,31.97858605,241.99,241.91,23.776884]
[1737198422947,31.97858605,241.99,241.88,36.11268605]
[1737198423650,31.97858605,241.92,241.77,10.3401]
[1737198423950,31.97858605,241.92,241.82,31.97858605]
[1737198424641,31.97858605,241.88,241.78,31.97858605]
[1737198424850,31.97858605,241.9,241.79,4.1358]
[1737198425152,31.97858605,241.9,241.8,31.97858605]
[1737198425659,31.97858605,241.92,241.88,0.03]
[1737198425835,31.97858605,241.9,241.88,0.03]
[1737198426756,20.0,241.87,241.76,1.689]
[1737198426933,31.97858605,241.84,241.76,1.689]
[1737198427246,31.97858605,241.78,241.76,0.03]
[1737198427834,31.97858605,241.82,241.76,0.03]
[1737198428936,31.97858605,241.8,241.76,0.03]
[1737198429137,31.97858605,241.78,241.76,0.03]
[1737198429537,14.4627,242.0,241.77,31.97858605]
[1737198429845,31.97858605,241.91,241.76,0.03]
[1737198430359,31.97858605,241.89,241.79,31.97858605]
[1737198431154,31.97858605,241.91,241.82,23.776884]
[1737198431356,31.97858605,242.04,241.76,0.03]
[1737198431357,31.97858605,241.93,241.85,23.776884]
[1737198431546,31.97858605,241.97,241.89,23.776884]
[1737198431934,31.97858605,241.97,241.88,23.776884]
[1737198432138,31.97858605,241.95,241.85,31.97858605]
[1737198432347,31.97858605,241.93,241.81,31.97858605]
[1737198432549,31.97858605,241.91,241.81,31.97858605]